{"text_format":"3","workbook":"xlsx","n_sheets":4,"sheets":["kindermenu's","matrixen","Algemene verkoopsvoorwaarden","Reservatievoorstel"],"not_rendered":{"macros":1,"defined_names":1},"read":"whole","date_system":"1900"}

{"sheet":"kindermenu's","index":0,"n_rows":56,"n_cols":27,"rows_kept":56}
[null,"Deze info is van: Feestzaal Katelijnenhof, Heirweg 172, 8800 Roeselare. Contacteer de zaakvoerder: 0475/618058 - info@katelijnenhof.be - web: www.katelijnenhof.be met foto's en volledige prijslijst."]
[]
[null,{"$f":"\"Rekenmodule kindermenu's. \" & matrixen!B1","v":"Rekenmodule kindermenu's. Prijzen geldig tot 31/03/2023"}]
[]
[{"$nulls":5},"kinderen",null,"kinderen",null,"kinderen"]
[{"$nulls":3},{"$f":"IF(TODAY()>AA11,\"Deze module is niet meer geldig.\",\"\")","v":""},null," 0 t.e.m. 2 j. 11 maand",null,"3 j. t.e.m. 5 j. 11 maand",null,"6 j, t.e.m. 11 jr. 11 maand"]
[null,"Wijziging per kind:",null,{"$f":"SUM(D10:D27)","v":{"v":2,"d":"2.00"}},null,"0,00",null,{"$f":"matrixen!E28+D7+D30+D35+ SUM(C41:C44)*2/3","v":{"v":21,"d":"21.00"}},null,{"$f":"matrixen!E29+D7+D29+D34+ SUM(C41:C44)","v":{"v":30,"d":"30.00"}}]
[{"$nulls":5},"U kan ook de kinderen laten mee-eten met de menu van de volwassenen.( zie een andere rekenmodule)"]
[]
[null,"MAAK STEEDS UW KEUZE in de gele vakken: (scroll naar beneden om meer gegevens in te vullen) Hierboven kunt u uw prijs volgen."]
[null,"(klik op de gele balk, vervolgens op het pijltje rechts en scroll ev. naar beneden)",null,"prijs pp",{"$nulls":4},"Eventuele datum van het feest:",{"$nulls":17},{"$f":"matrixen!B1","v":"Prijzen geldig tot 31/03/2023"}]
[]
[null,"Kinderen tot 12 jaar eten aan een verminderde prijs. Zij eten bij voorkeur de menu van "]
[null,"de ouders mee. Voor prijzen zie een andere module. Maar een kindermenu is ook mogelijk.",{"$nulls":6},"geraamd aantal kinderen 6 j. t.e.m. 11 jr. 11 maand:"]
[{"$nulls":8},"geraamd aantal kinderen 3 j. t.e.m. 5 j. 11 maand:"]
[null,"Een kindermenu bestaat standaard uit:",{"$nulls":6},"geraamd aantal kinderen  0 t.e.m. 2 j. 11 maand:"]
[null,"Aperitief: zelfde regeling ouders. 1 per persoon of naar believen.",{"$nulls":24},"ja"]
[{"$nulls":8},"uur van aankomst:",{"$nulls":17},"nee"]
[null,"De kinderen nemen dezelfde hapjes als de ouders.",null,{"$f":"VLOOKUP(B19,matrixen!B8:H10,7,FALSE)","v":{"v":2,"d":"2.00"}},{"$nulls":4},"aan tafel om:"]
[null,"De kinderen nemen dezelfde hapjes als de ouders.",{"$nulls":24},{"$f":"matrixen!B8","v":"De kinderen nemen geen hapjes"}]
[null,"Soepje (idem volwassenen of een andere soepje beschikbaar op die dag)",null,{"$f":"VLOOKUP(B21,matrixen!B11:H12,7,FALSE)","v":{"v":0,"d":"0.00"}},{"$nulls":4},"Uw naam:",{"$nulls":17},{"$f":"matrixen!B9","v":"De kinderen nemen dezelfde hapjes als de ouders."}]
[null,"Soepje (idem volwassenen of een andere soepje beschikbaar op die dag)",{"$nulls":6},"Adres:",{"$nulls":17},{"$f":"matrixen!B10","v":"De kinderen nemen partysnacks"}]
[null,"Kies hier uw hoofdschotel",{"$nulls":6},"Stad:",{"$nulls":17},{"$f":"matrixen!B11","v":"Soepje (idem volwassenen of een andere soepje beschikbaar op die dag)"}]
[null,"Drank bij de hoofdschotel = zelfde regeling ouders. Indien gewenst appelmoes inbegrepen.",{"$nulls":6},"Tel nr:",{"$nulls":17},{"$f":"matrixen!B12","v":"De kinderen wensen geen soep"}]
[null,"Kies hier uw hoofdschotel",{"$nulls":6},"email:",{"$nulls":17},{"$f":"matrixen!B13","v":0}]
[null,"keuze aardappelbereiding",{"$nulls":7},"Gaat u akkoord met de algemene verkoopsvoorwaarden?   ","ja",{"$nulls":15},{"$f":"matrixen!B14","v":"Kies hier uw hoofdschotel"}]
[null,"keuze aardappelbereiding",{"$nulls":24},{"$f":"matrixen!B15","v":"Gebakken kippenbout"}]
[null,"Als dessert voorzien wij een cornet",null,{"$f":"VLOOKUP(B30,matrixen!B32:Q35,15,FALSE)","v":{"v":0,"d":"0.00"}},{"$nulls":4},"Geschat totaal voor de kinderen:",{"$f":"Reservatievoorstel!H11","v":{"v":0,"d":"€ 0.00"}},{"$nulls":16},{"$f":"matrixen!B16","v":"Hamburger"}]
[{"$nulls":3},{"$f":"D28/2","v":{"v":0,"d":"0.00"}},null,{"$f":"IF(D29>0,\"voor kids < 12 jaar\",\"\")","v":""},{"$nulls":3},"(Gebaseerd op de door u ingebrachte gegevens)",{"$nulls":16},{"$f":"matrixen!B17","v":"Balletjes in tomatensaus (ambachtelijk)"}]
[null,"Kies voor drank na de maaltijd dezelfde regeling als de volwassenen.",null,{"$f":"D28/3","v":{"v":0,"d":"0.00"}},null,{"$f":"IF(D30>0,\"voor kids < 6 jaar\",\"\")","v":""},{"$nulls":3},"Voeg dit bedrag toe aan het totaal van de ouders in een ander rekenblad.",{"$nulls":16},{"$f":"matrixen!B18","v":"Frikandel"}]
[null,"Kies voor drank na de maaltijd dezelfde regeling als de volwassenen.",null,{"$f":"IF(D28>0,\"gratis\",\"\")","v":""},null,{"$f":"IF(D31<>\"\",\"voor kids < 3 jaar\",\"\")","v":""},{"$nulls":20},{"$f":"matrixen!B19","v":0}]
[null,"KInderen kunnen ook mee-eten van dessertbuffet of ijslam. Maak in dat geval hieronder je keuze.",{"$nulls":24},{"$f":"matrixen!B20","v":"keuze aardappelbereiding"}]
[{"$nulls":3},{"$f":"IFERROR(VLOOKUP($B$33,matrixen!$B$37:$H$41,7,FALSE),0)","v":{"v":0,"d":"0.00"}},{"$nulls":22},{"$f":"matrixen!B21","v":"frietjes "}]
[{"$nulls":3},{"$f":"IFERROR(VLOOKUP($D$33,matrixen!H38:I41,2,FALSE),0)","v":{"v":0,"d":"0.00"}},null,{"$f":"IF(D34>0,\"voor kids < 12 jaar\",\"\")","v":""},{"$nulls":20},{"$f":"matrixen!B22","v":"kroketjes"}]
[{"$nulls":3},{"$f":"IFERROR(VLOOKUP($D$33,matrixen!H38:J41,3,FALSE),0)","v":{"v":0,"d":"0.00"}},null,{"$f":"IF(D35>0,\"voor kids < 6 jaar\",\"\")","v":""}]
[{"$nulls":3},{"$f":"IF(D33>0,\"gratis\",\"\")","v":""},null,{"$f":"IF(D36<>\"\",\"voor kids < 3 jaar\",\"\")","v":""}]
[null,"Om uw selecties te bewaren, gelieve ze op te slaan op uw harde schijf. (opslaan als)",{"$nulls":24},{"$f":"matrixen!B23","v":0}]
[null,"Om een aanvraag naar ons te versturen stuur een mail naar info@katelijnenhof met in bijlage dit bestand vanaf uw harde schijf.",{"$nulls":24},{"$f":"matrixen!B24","v":"***"}]
[{"$nulls":26},{"$f":"matrixen!B25","v":"Cornet"}]
[null,"Late night snacks voor kinderen: ",{"$nulls":24},{"$f":"matrixen!B26","v":0}]
[null,null,{"$f":"IFERROR(VLOOKUP(B41,matrixen!$A$301:$E$305,5,FALSE)/2,0)","v":0},{"$nulls":23},{"$f":"matrixen!B27","v":"0 t.e.m. 2 jaar : gratis"}]
[null,null,{"$f":"IFERROR(VLOOKUP(B42,matrixen!$A$301:$E$305,5,FALSE)/2,0)","v":0},{"$nulls":23},{"$f":"matrixen!B28","v":"3 t.e.m. 5 jaar : € "}]
[null,null,{"$f":"IFERROR(VLOOKUP(B43,matrixen!$A$301:$E$305,5,FALSE)/2,0)","v":0},{"$nulls":23},{"$f":"matrixen!B29","v":"6 t.e.m. 11 jaar : € "}]
[null,null,{"$f":"IFERROR(VLOOKUP(B44,matrixen!$A$301:$E$305,5,FALSE)/2,0)","v":0},{"$nulls":23},{"$f":"matrixen!B30","v":0}]
[null,"Keuze mogelijkheden:",{"$nulls":24},{"$f":"matrixen!B31","v":0}]
[null,{"$f":"matrixen!A301 & \" aan \" & matrixen!E301/2 & \" euro\"","v":"Croque uit het vuistje aan 1,4 euro"},{"$nulls":24},{"$f":"matrixen!B32","v":"Kies voor drank na de maaltijd dezelfde regeling als de volwassenen."}]
[null,{"$f":"matrixen!A302 & \" aan \" & matrixen!E302/2 & \" euro\"","v":"Pizza Margherita aan 2,25 euro"},{"$nulls":24},{"$f":"matrixen!B33","v":"Alle drank na de maaltijd komt op één rekening en wordt door de organisator van het feest betaald"}]
[null,{"$f":"matrixen!A303 & \" aan \" & matrixen!E303/2 & \" euro\"","v":"Belegde broodjes (2 pp) aan 2,25 euro"},{"$nulls":24},{"$f":"matrixen!B34","v":"Elke gast die na de maaltijd een drankje bestelt rekent direct af aan de bar"}]
[null,{"$f":"matrixen!A304 & \" aan \" & matrixen!E304/2 & \" euro\"","v":"Braadworst aan 1,5 euro"},{"$nulls":24},{"$f":"matrixen!B35","v":"Forfait voor drank naar believen (alle bieren en frisdranken van de drankkaart in de zaal) na een maaltijd. pp: "}]
[null,{"$f":"matrixen!A305 & \" aan \" & matrixen!E305/2 & \" euro\"","v":"Scampi (3pp) Nantua met farfale en broccoli aan 2,25 euro"},{"$nulls":24},{"$f":"matrixen!B36","v":0}]
[{"$nulls":26},{"$f":"matrixen!B37","v":0}]
[{"$nulls":26},{"$f":"matrixen!B38","v":"IJstaart ambachtelijk, speciale vorm, smaak naar keuze"}]
[{"$nulls":26},{"$f":"matrixen!B39","v":"Basis dessertbuffet met:"}]
[{"$nulls":26},{"$f":"matrixen!B40","v":"Uitgebreid dessertbuffet met:"}]
[{"$nulls":26},{"$f":"matrixen!B41","v":"Uitgebreid en luxueus dessertbuffet met:"}]
[{"$nulls":26},{"$f":"matrixen!B42","v":0}]

{"sheet":"matrixen","index":1,"n_rows":382,"n_cols":17,"rows_kept":382,"hidden":true}
[null,"Prijzen geldig tot 31/03/2023"]
[null,"minimaal verbruik",null,null,1250]
[{"$nulls":9},"Kinderen tot 12 jaar eten aan een verminderde prijs. Zij eten bij voorkeur de menu van "]
[null,"U kunt ook een kindermenu nemen:",{"$nulls":7},"de ouders mee."]
[]
[null,"Aperitief: 1 fruitsapje of 1 frisdrankje met chips"]
[{"$nulls":9},"0 t.e.m. 2 jaar : gratis"]
[null,"De kinderen nemen geen hapjes",{"$nulls":5},0,null,"3 t.e.m. 5 jaar : 1/3 van de prijs"]
[null,"De kinderen nemen dezelfde hapjes als de ouders.",{"$nulls":5},2,null,"6 t.e.m. 11 jaar : 1/2 van de prijs"]
[null,"De kinderen nemen partysnacks",{"$nulls":5},2]
[null,"Soepje (idem volwassenen of een andere soepje beschikbaar op die dag)",{"$nulls":7},"Op de drie gerechten hieronder wordt echter geen extra kinderkorting meer toegekend!"]
[null,"De kinderen wensen geen soep",{"$nulls":5},-1.5,null,"De aardappelbereiding is bij voorkeur dezelfde van de volwassenen."]
[]
[null,"Kies hier uw hoofdschotel"]
[null,"Gebakken kippenbout"]
[null,"Hamburger"]
[null,"Balletjes in tomatensaus (ambachtelijk)"]
[null,"Frikandel"]
[]
[null,"keuze aardappelbereiding"]
[null,"frietjes "]
[null,"kroketjes"]
[]
[null,"***"]
[null,"Cornet"]
[]
[null,"0 t.e.m. 2 jaar : gratis"]
[null,"3 t.e.m. 5 jaar : € ",null,null,19]
[null,"6 t.e.m. 11 jaar : € ",null,null,28]
[]
[]
[null,"Kies voor drank na de maaltijd dezelfde regeling als de volwassenen."]
[null,"Alle drank na de maaltijd komt op één rekening en wordt door de organisator van het feest betaald",{"$nulls":14},"één rekening"]
[null,"Elke gast die na de maaltijd een drankje bestelt rekent direct af aan de bar",{"$nulls":14},"direct afrekenen"]
[null,"Forfait voor drank naar believen (alle bieren en frisdranken van de drankkaart in de zaal) na een maaltijd. pp: ",{"$nulls":13},18.2,18.2]
[]
[{"$nulls":7},"vol","6 t.e.m. 11 jaar : € ","3 t.e.m. 5 jaar : € ","0 t.e.m. 2 jaar : gratis"]
[null,"IJstaart ambachtelijk, speciale vorm, smaak naar keuze",{"$nulls":5},6,3,2]
[null,"Basis dessertbuffet met:",{"$nulls":5},11,5.5,3.67]
[null,"Uitgebreid dessertbuffet met:",{"$nulls":5},14.5,7.25,4.83]
[null,"Uitgebreid en luxueus dessertbuffet met:",{"$nulls":5},18,9,6]
{"$rows_empty":180}
["Exclusiviteit voor beide zalen:",{"$nulls":4},750]
{"$rows_empty":77}
["Late night snacks",null,null,"overal op regel 300"]
["Croque uit het vuistje",{"$nulls":3},2.8]
["Pizza Margherita",{"$nulls":3},4.5]
["Belegde broodjes (2 pp)",{"$nulls":3},4.5]
["Braadworst",{"$nulls":3},3]
["Scampi (3pp) Nantua met farfale en broccoli",{"$nulls":3},4.5]
{"$rows_empty":74}
["Betaling op de dag zelf (cash of bancontact), u bekomt 2% korting op het totaal"]
["Storting op BE 48 4631 1391 2127 min. 7 dagen voor het feest, 2% korting"]
["Betaling na het feest. Gelieve 40 % voorschot te storten op BE48 4631 1391 2127. Geen korting."]

{"sheet":"Algemene verkoopsvoorwaarden","index":2,"n_rows":37,"n_cols":1,"rows_kept":37}
["Algemene verkoopsvoorwaarden vanaf 01/11/2022:"]
[]
["1) Onze facturen zijn contant te betalen bij levering van de goederen, dit is de dag van het event. Bijgevolg zal in geval van laattijdige betaling van rechtswege en zonder voorafgaande ingebrekestelling een intrest aangerekend worden van 12% per jaar op de bedragen, verschuldigd acht dagen na de vervaldag van de facturen. Tevens zal bij gebrek aan betaling na aanmaning bij gewone brief, het verschuldigde bedrag van rechtswege verhoogd worden met een forfaitaire vergoeding van 12 % met een minimum van € 50  voor bijkomende administratieve kosten, debiteurenbewaking en commerciële stoornissen. Wij behouden ons het recht voor op elk moment de leveringen te staken. Elke klacht over de kwaliteit van de geleverde goederen moet uiterlijk 24 uur na de levering worden overgemaakt. Klachten in verband met facturatie kunnen slechts in aanmerking worden genomen zo zij binnen de acht dagen na ontvangst van de goederen bij aangetekende brief worden meegedeeld. In geval van betwisting zijn uitsluitend de rechtbanken van Kortrijk bevoegd. De leveringen  geschieden op risico van de bestemmeling. Er wordt uitdrukkelijk overeengekomen dat de klant door het plaatsen van een bestelling onze algemene verkoopsvoorwaarden erkent. Elke wijziging hieraan moet voorafgaandelijk in een schriftelijk akkoord worden vastgelegd."]
[]
["2) Annulatie dient schriftelijk en gedateerd te geschieden. "]
["In geval van annulatie minder dan 60 dagen voor de activiteit blijft het voorschot eigendom van het Katelijnenhof. Voor annulatie minder dan 10 dagen voor de activiteit is de klant in alle gevallen verplicht 35 % van de reservatie waarde van de gehele manifestatie te vergoeden. Bij annulatie minder dan 5 dagen voor  de activiteit is de klant in alle gevallen verplicht de reservatie waarde van de gehele manifestatie te vergoeden."]
[]
["3) Iedere levering van dranken, voedingswaren of diensten in de  zalen is uitsluitend voorbehouden aan het Katelijnenhof, tenzij er een andere schriftelijke overeenkomst is."]
[]
["4) De klant is eraan gehouden voor iedere dansavond met groot orkest een aanvraag tot toelating in te dienen bij SABAM, Rijselsestraat 51, 8500 Kortrijk, Tel : 056/210738 en alle kosten voortvloeiend uit deze aanvraag te dragen.  Voor een gewone disc-jockey betalen wij jaarlijks een vaste bijdrage. Het verbruik (drank en voeding) van de DJ is ten laste van de klant. Gelet op de nieuwe geluidsnormen, van kracht op 01/01/2013, moet de klant de DJ of elke andere persoon of toestel dat  geluid produceert verplichten zich aan deze normen te houden. De toelating voor onze zaal is – maximaal geluidsniveau > 85 dB(A) LAeq,15min en ≤ 95 dB(A) LAeq,15min. Dit is ruim voldoende. Alle boetes ten gevolge een overschrijding van deze voorwaarde zijn ten laste van de klant. Er wordt een professionele houding van elke DJ of geluidstechnicus verwacht."]
["Het is niet toegestaan om muziek af te spelen via B2C diensten zoals Spotify, Deezer, Youtube… Dit geldt voor elke horecazaak, winkel enz… Doet de klant of zijn DJ dat toch en er volgt een boete, dan is deze ten laste van de klant."]
[]
["5) Alle door de klant meegebrachte materiaal dient door de klant te worden verzekerd en direct na het beëindigen van de manifestatie te worden verwijderd uit de zaal. Het Katelijnenhof behoudt het recht de leverancier te aanvaarden en voorschriften te geven om de lokalen ongeschonden te behouden. Het is strikt verboden om versieringen aan de muren of plafonds te bevestigen met duimspijkers of kleefband ! Bij beschadigingen van een deel van de muur wordt het geheel als beschadigd beschouwd."]
[]
["6) Het gebruik van de zaal is strikt beperkt tot de in deze overeenkomst vastgestelde functie. Iedere wijziging in de voorheen verklaarde bestemming brengt automatisch het recht tot prijsherziening met zich mee."]
[]
["7) Het gebruik van de zaal is gratis van zodra het verbruik hoger ligt dan € 1250. Indien het verbruik lager ligt, wordt het factuurbedrag opgetrokken tot € 1250. Indien uw feest cash (max € 3000) of met bancontact betaald wordt op de dag zelf krijgt u een korting van 2 % op de gehele factuur. Voor traiteurdienst gelden andere kortingsregels."]
[]
["8) Sluitingsuren zaal:"]
[]
["In geval van een event dat start ’s morgens start tussen 7u en 10u59 (vb. ontbijt)"]
["Event kan maximaal 6 uur duren."]
[]
["In geval van een event dat start op de middag start tussen 11u en 13u59"]
["De bar sluit om 18u00, de zaal sluit om 18u30."]
[]
["In geval van een event dat start in de namiddag start tussen 14u en 17u59 (vb. babyborrel)"]
["Event kan maximaal 6 uur duren."]
[]
["In geval van een event dat start ’s avonds start vanaf 18u"]
["De bar sluit om 2u30, de zaal sluit om 3u."]
[]
["Indien het event toch langer uitloopt dan het sluitingsuur wordt per begonnen uur een toeslag van € 125,00 (btw incl.) aangerekend. Geen enkel drankenforfait geldt dan nog."]
[]
["9) De klant is verantwoordelijk voor de goede orde in en rond de feestzaal. Schade veroorzaakt door een der aanwezigen kan verhaald worden op deze persoon maar als deze om gelijk welke reden de schade niet kan vergoeden (vb: te weinig financiële middelen of de veroorzaker is onbekend) kan deze schade eveneens ondeelbaar worden verhaald op de klant , zijnde de persoon die het feest heeft besteld. "]
[]
["10) Energietoeslag. De energieprijzen zijn momenteel op hol geslagen. Het kan zijn dat wij genoodzaakt zijn een energietoeslag voor het gebruik van de zaal aan te rekenen. U wordt in voorkomend geval op voorhand verwittigd en mag uw feest kosteloos annuleren indien u deze niet wenst te betalen."]

{"sheet":"Reservatievoorstel","index":3,"n_rows":50,"n_cols":18,"rows_kept":50,"merged":[[2,16,3,16],[11,10,11,12],[31,0,32,7],[44,0,45,8]]}
[null,null,{"$f":"\"Reservatievoorstel . \"&matrixen!B1","v":"Reservatievoorstel . Prijzen geldig tot 31/03/2023"},{"$nulls":7},"Uitsplitsing per BTW tarief."]
["Naam Klant:",null,{"$f":"'kindermenu''s'!J21","v":0},{"$nulls":3},"Katelijnenhof",{"$nulls":8},{"$f":"IF(Q2>0,\"Prijs drankforfait na de maaltijd, volledig aan 21% BTW:\",\"\")","v":""},{"$f":"'kindermenu''s'!D28","v":{"v":0,"d":"0.00"}},"= prijs vol"]
["Adres:",null,{"$f":"'kindermenu''s'!J22","v":0},{"$nulls":3},"Heirweg 172",{"$nulls":5},"Menu",{"$nulls":3},"Totaal aan 21%"]
["Stad:",null,{"$f":"'kindermenu''s'!J23","v":0},{"$nulls":3},"8800 Roeselare",{"$nulls":3},"aantal","totaal:","deel 6%","deel21%",null,{"$f":"IF(Q2>0,\"Drankforfait:\",\"\")","v":""}]
["Tel nr:",null,{"$f":"'kindermenu''s'!J24","v":0}]
["email:",null,{"$f":"'kindermenu''s'!J25","v":0},{"$nulls":3},"Gsm 0475/618058",null,null,"JR 1/2",{"$f":"D10","v":0},{"v":30,"d":"30.00"},{"$f":"ROUND(L6*0.65,2)","v":{"v":19.5,"d":"19.50"}},{"$f":"L6-M6","v":{"v":10.5,"d":"10.50"}},null,{"$f":"Q2/2","v":{"v":0,"d":"0.00"}},{"$f":"N6+P6","v":{"v":10.5,"d":"10.50"}}]
["Datum activiteit:",null,{"$f":"'kindermenu''s'!J11","v":"00:00:00"},{"$nulls":6},"JR 1/3",0,{"v":21,"d":"21.00"},{"$f":"ROUND(L7*0.65,2)","v":13.65},7.35,null,{"$f":"Q2/3","v":{"v":0,"d":"0.00"}},7.35]
["Totaal aantal kinderen:",null,{"$f":"D9+D10+D11+D12","v":0},null,"prijs:",null,"aankomst om:",{"$f":"'kindermenu''s'!J18","v":0},null,"JR gratis",0,"0,00",{"$f":"L8*0.65","v":0},{"$f":"L8*0.35","v":{"v":0,"d":"0.00"}},null,null,0]
[{"$nulls":6},"aan tafel om:",{"$f":"'kindermenu''s'!J19","v":0}]
[null,null,"JR 1/2 (6 t.e.m. 11) :",{"$f":"'kindermenu''s'!J14","v":0},{"$f":"'kindermenu''s'!J7","v":{"v":30,"d":"30.00"}}]
[null,null,"JR 1/3 (3 t.e.m. 5) :",{"$f":"'kindermenu''s'!J15","v":0},{"$f":"'kindermenu''s'!H7","v":{"v":21,"d":"21.00"}},null,"raming totaal:",{"$f":"D9*E9+D10*E10+D11*E11+D12*E12","v":{"v":0,"d":"€ 0.00"}}]
[null,null,"JR gratis (0 t.e.m. 2) :",{"$f":"'kindermenu''s'!J16","v":0},{"$f":"'kindermenu''s'!F7","v":"0,00"},{"$nulls":5},"Input GKS:"]
[]
["De tafelschikking wordt mee geregeld met de schikking van de ouders.",{"$nulls":9},{"$f":"K6","v":0},{"$f":"J6","v":"JR 1/2"},"x",{"$f":"M6","v":{"v":19.5,"d":"19.50"}},{"v":0.12,"d":"12%"},{"$f":"K14*N14","v":{"v":0,"d":"0.00"}},"Dep. B"]
[{"$nulls":10},{"$f":"K6","v":0},{"$f":"J6","v":"JR 1/2"},"x",{"$f":"Q6","v":{"v":10.5,"d":"10.50"}},{"v":0.21,"d":"21%"},{"v":0,"d":"0.00"},"Dep. A"]
[{"$nulls":10},{"$f":"K7","v":0},{"$f":"J7","v":"JR 1/3"},"x",{"$f":"M7","v":13.65},{"v":0.12,"d":"12%"},{"v":0,"d":"0.00"},"Dep. B"]
[{"$nulls":10},{"$f":"K7","v":0},{"$f":"J7","v":"JR 1/3"},"x",{"$f":"Q7","v":7.35},{"v":0.21,"d":"21%"},{"v":0,"d":"0.00"},"Dep. A"]
[]
[{"$f":"'kindermenu''s'!B17","v":"Aperitief: zelfde regeling ouders. 1 per persoon of naar believen."}]
[]
[{"$f":"'kindermenu''s'!B19","v":"De kinderen nemen dezelfde hapjes als de ouders."},{"$nulls":9},"De eventuele korting contant is nog niet in bovenstaande splitsing verwerkt."]
[]
[{"$f":"'kindermenu''s'!B21","v":"Soepje (idem volwassenen of een andere soepje beschikbaar op die dag)"}]
[]
[{"$f":"'kindermenu''s'!B23","v":"Kies hier uw hoofdschotel"}]
[{"$f":"'kindermenu''s'!B24","v":"Drank bij de hoofdschotel = zelfde regeling ouders. Indien gewenst appelmoes inbegrepen."}]
[]
[{"$f":"'kindermenu''s'!B26","v":"keuze aardappelbereiding"}]
[]
[{"$f":"IF('kindermenu''s'!B33<>\"\",'kindermenu''s'!B33,'kindermenu''s'!B28)","v":"Als dessert voorzien wij een cornet"}]
[]
[{"$f":"\"Drank na de maaltijd = zelfde regeling ouders => \" &'kindermenu''s'!B30","v":"Drank na de maaltijd = zelfde regeling ouders => Kies voor drank na de maaltijd dezelfde regeling als de volwassenen."}]
[]
[]
[{"$f":"IF(OR('kindermenu''s'!B41<>\"\",'kindermenu''s'!B42<>\"\",'kindermenu''s'!B43<>\"\",'kindermenu''s'!B44<>\"\"),\"U koos volgende late night snacks voor de kinderen:\",\"\")","v":""}]
[{"$f":"'kindermenu''s'!B41","v":0}]
[{"$f":"'kindermenu''s'!B42","v":0}]
[{"$f":"'kindermenu''s'!B43","v":0}]
[{"$f":"'kindermenu''s'!B44","v":0}]
[]
[]
[]
["Het juiste aantal EN de gewenste tafelschikking moet ons meegedeeld worden ten laatste op: ",{"$nulls":7},{"$f":"C7-9","v":-9}]
[]
["Wijzigingen na deze datum van aantal en/of tafelschikking hebben prijsherzieningen tot gevolg!"]
[]
["Dit aantal geldt als minimum voor facturatie. Verdere verkoopsvoorwaarden op een ander werkblad. "]
["Vergeet ze niet te lezen.",{"$nulls":6},"Gaat u akkoord met de algemene verkoopsvoorwaarden?",{"$f":"'kindermenu''s'!K26","v":"ja"}]
["Handtekening der beide partijen voor akkoord:"]
[null,null,"De klant",{"$nulls":4},"Het Katelijnenhof"]